lending/lending_fUSD_20240830
["ID","MTS","AMOUNT","RATE_DAILY","PERIOD"]
[336641161,1724994640867,-2100.0,0.00021095,2]
[336641163,1724994640876,-500.0,0.00021095,2]
[336641165,1724994640885,-152.0,0.00021266,8]
[336641167,1724994640897,-150.76142755,0.0002144,7]
[336641169,1724994640906,-703.72,0.00021589,30]
[336641171,1724994640915,-236.8271307,0.00021711,2]
[336641173,1724994640924,-152.0,0.00021722,9]
[336641175,1724994640933,-1247.65,0.00021918,2]
[336641177,1724994640942,-150.0,0.00021918,2]
[336641179,1724994640951,-1000.0,0.00022,23]
[336641181,1724994640960,-900.0,0.00022,22]
[336641183,1724994640969,-500.0,0.00022,2]
[336641185,1724994640978,-598.9,0.00022153,2]
[336641187,1724994640987,-152.0,0.00022177,10]
[336641189,1724994640996,-1800.0,0.00022191,2]
[336641191,1724994641006,-2100.0,0.00022191,2]
[336641193,1724994641015,-500.0,0.00022191,2]
[336641194,1724994641024,-3000.0,0.000222,2]
[336641196,1724994641033,-250.0,0.000222,10]
[336641199,1724994641042,-250.0,0.000222,10]
[336641200,1724994641051,-250.0,0.0002222,10]
[336641202,1724994641061,-250.0,0.0002222,10]
[336641204,1724994641070,-250.0,0.0002222,10]
[336641206,1724994641079,-170.47038921,0.00022281,2]
[336641208,1724994641088,-243.0,0.000224,2]
[336641210,1724994641097,-150.0,0.00022495,2]
[336641212,1724994641106,-152.0,0.00022633,11]
[336641214,1724994641115,-250.0,0.00023,30]
[336641216,1724994641125,-15283.17,0.00023,10]
[336641218,1724994641134,-150.0,0.00023071,2]
[336641220,1724994641143,-152.0,0.00023088,12]
[336641222,1724994641153,-180.0,0.00023205,2]
[336641224,1724994641162,-156.25441977,0.0002322,2]
[336641226,1724994641171,-236.8271307,0.00023256,2]
[336641229,1724994641187,-500.0,0.00023287,2]
[336641231,1724994641199,-15061.31469758,0.000233,7]
[336641234,1724994641215,-1697.09681295,0.000233,7]
[336641236,1724994641230,-2510.72,0.000233,7]
[336641238,1724994641242,-11775.33259882,0.000233,7]
[336641242,1724994641284,-276.19589065,0.000233,7]
[336641244,1724994641295,-500.0,0.000233,2]
[336641246,1724994641304,-89.24338124,0.000233,2]
[336641248,1724994641316,-670.7,0.000233,2]
[336641250,1724994641327,-1240.05661876,0.000233,2]
[336641252,1724994641337,-250.42498755,0.000233,2]
[336641253,1724994641346,-1710.19466749,0.00023431,30]
[336641255,1724994641358,-296.33106017,0.00023431,30]
[336641257,1724994641369,-103.47427234,0.00023431,30]
[336641259,1724994641378,-388.52572766,0.000235,2]
[336641261,1724994641390,-611.47427234,0.000235,2]
[336641262,1724994641400,-1000.0,0.000235,2]
[336641264,1724994641410,-152.0,0.00023544,13]
[336641266,1724994641419,-150.0,0.00023648,2]
[336641268,1724994641428,-243.0,0.0002383,2]
[336641269,1724994641438,-2110.0,0.00023931,30]
[336641271,1724994641447,-152.0,0.00023999,14]
[336641273,1724994641456,-505.0,0.00024,5]
[336641275,1724994641466,-929.08798468,0.00024,2]
[336641277,1724994641477,-33.51531385,0.00024,2]
[336641278,1724994641487,-550.0,0.00024,2]
[336641280,1724994641496,-9.16296224,0.00024035,2]
[336641283,1724994641512,-441.19451776,0.00024035,2]
[336641284,1724994641521,-34.0206605,0.00024047,2]
[336641286,1724994641532,-465.9793395,0.00024047,2]
[336641288,1724994641541,-600.0,0.00024053,2]
[336641290,1724994641550,-467.84357261,0.000241,14]
[336641292,1724994641561,-382.70642739,0.000241,14]
[336641294,1724994641571,-150.083008,0.00024148,6]
[336641295,1724994641580,-500.0,0.00024169,2]
[336641297,1724994641590,-800.0,0.00024198,2]
[336641299,1724994641599,-182.07610466,0.0002421,2]
[336641301,1724994641609,-150.0,0.00024225,2]
[336641303,1724994641619,-150.083008,0.00024248,6]
[336641305,1724994641628,-150.083008,0.00024248,5]
[336641306,1724994641638,-150.083008,0.00024248,4]
[336641308,1724994641649,-150.083008,0.00024348,6]
[336641310,1724994641660,-150.083008,0.00024348,5]
[336641312,1724994641670,-150.083008,0.00024348,4]
[336641314,1724994641681,-3876.01270855,0.0002438,2]
[336641316,1724994641693,-1800.0,0.00024383,2]
[336641318,1724994641703,-2100.0,0.00024383,2]
[336641320,1724994641712,-500.0,0.00024383,2]
[336641322,1724994641722,-598.9,0.00024417,2]
[336641323,1724994641731,-600.0,0.00024429,2]
[336641325,1724994641741,-2110.0,0.00024431,30]
[336641327,1724994641750,-150.083008,0.00024448,6]
[336641329,1724994641760,-150.083008,0.00024448,5]
[336641331,1724994641771,-150.083008,0.00024448,4]
[336641332,1724994641780,-152.0,0.00024455,15]
[336641334,1724994641790,-10297.42012221,0.0002448,2]
[336641336,1724994641802,-4355.31238879,0.0002448,2]
[336641338,1724994641813,-2942.97185425,0.0002448,2]
[336641340,1724994641825,-312.3160075,0.0002448,2]
[336641342,1724994641836,-256.89893274,0.0002448,2]
[336641344,1724994641848,-83111.61462018,0.0002448,2]
[336641346,1724994641861,-532.93317011,0.0002448,2]
[336641348,1724994641872,-9203.11958714,0.0002448,2]
[336641350,1724994641884,-2098.83755617,0.0002448,2]
[336641352,1724994641896,-533.1,0.0002448,2]
[336641354,1724994641907,-4010.853084,0.0002448,2]
[336641357,1724994641927,-22092.70862535,0.0002448,2]
[336641359,1724994641937,-49252.33302821,0.0002448,2]
[336641361,1724994641947,-5200.0,0.0002449,2]
[336641363,1724994641956,-3700.0,0.00024512,2]
[336641365,1724994641967,-150.0,0.0002453,10]
[336641366,1724994641976,-600.0,0.00024533,2]
[336641368,1724994641986,-500.0,0.00024557,2]
[336641370,1724994641996,-658.0,0.00024557,2]
[336641372,1724994642006,-151.0,0.00024557,2]
[336641373,1724994642016,-151.0,0.00024557,2]
[336641375,1724994642025,-151.0,0.00024557,2]
[336641377,1724994642034,-151.0,0.00024557,2]
[336641379,1724994642044,-202.0,0.00024557,2]
[336641381,1724994642053,-500.0,0.00024557,2]
[336641382,1724994642064,-500.0,0.00024557,2]
[336641384,1724994642075,-500.0,0.00024557,2]
[336641386,1724994642085,-500.0,0.00024557,2]
[336641388,1724994642095,-500.0,0.00024557,2]
[336641390,1724994642106,-500.0,0.00024557,2]
[336641392,1724994642116,-500.0,0.00024557,2]
[336641394,1724994642126,-500.0,0.00024557,2]
[336641396,1724994642136,-500.0,0.00024557,2]
[336641397,1724994642145,-500.0,0.00024557,2]
[336641399,1724994642155,-500.0,0.00024557,2]
[336641401,1724994642164,-500.0,0.00024557,2]
[336641403,1724994642174,-500.0,0.00024557,2]
[336641405,1724994642183,-500.0,0.00024557,2]
[336641407,1724994642193,-548.0,0.00024557,2]
[336641409,1724994642203,-170.47038921,0.00024557,2]
[336641410,1724994642212,-500.0,0.00024612,2]
[336641412,1724994642222,-500.0,0.00024621,2]
[336641414,1724994642231,-500.0,0.0002463,2]
[336641416,1724994642241,-609.32,0.0002463,6]
[336641418,1724994642251,-500.0,0.00024638,2]
[336641420,1724994642260,-500.0,0.00024647,2]
[336641421,1724994642270,-501.007826,0.00024655,2]
[336641423,1724994642280,-500.0,0.00024656,2]
[336641425,1724994642290,-500.0,0.00024657,4]
[336641427,1724994642299,-590.38088022,0.00024657,4]
[336641429,1724994642309,-2146.6,0.00024657,4]
[336641431,1724994642318,-1588.76,0.00024657,4]
[336641432,1724994642328,-1588.76,0.00024657,4]
[336641434,1724994642337,-1588.76,0.00024657,4]
[336641436,1724994642347,-1588.76,0.00024657,4]
[336641438,1724994642356,-1588.76,0.00024657,4]
[336641440,1724994642366,-1588.76,0.00024657,4]
[336641442,1724994642376,-1588.76,0.00024657,4]
[336641443,1724994642385,-1588.76,0.00024657,4]
[336641445,1724994642395,-1588.76,0.00024657,4]
[336641447,1724994642405,-1588.76,0.00024657,4]
[336641449,1724994642414,-1588.76,0.00024657,4]
[336641451,1724994642424,-1588.76,0.00024657,4]
[336641453,1724994642433,-1588.76,0.00024657,4]
[336641454,1724994642442,-1588.76,0.00024657,4]
[336641456,1724994642452,-1588.76,0.00024657,4]
[336641458,1724994642462,-1588.76,0.00024657,4]
[336641460,1724994642471,-1588.76,0.00024657,4]
[336641462,1724994642480,-1588.76,0.00024657,4]
[336641464,1724994642490,-1588.76,0.00024657,4]
[336641466,1724994642499,-1588.76,0.00024657,4]
[336641468,1724994642508,-1588.76,0.00024657,4]
[336641470,1724994642517,-1588.76,0.00024657,4]
[336641471,1724994642527,-1588.76,0.00024657,4]
[336641473,1724994642536,-1588.7811302,0.00024657,4]
[336641475,1724994642545,-500.0,0.00024657,4]
[336641477,1724994642554,-500.0,0.00024657,4]
[336641479,1724994642563,-500.0,0.00024657,4]
[336641481,1724994642572,-500.0,0.00024657,4]
[336641483,1724994642582,-500.0,0.00024657,4]
[336641485,1724994642591,-500.0,0.00024657,4]
[336641486,1724994642600,-500.0,0.00024657,4]
[336641488,1724994642609,-500.0,0.00024657,4]
[336641490,1724994642619,-500.0,0.00024657,4]
[336641492,1724994642628,-601.42,0.00024657,4]
[336641493,1724994642638,-2070.45,0.00024657,4]
[336641495,1724994642648,-2070.45,0.00024657,4]
[336641497,1724994642657,-2070.45,0.00024657,4]
[336641499,1724994642666,-2070.45,0.00024657,4]
[336641501,1724994642675,-2070.45,0.00024657,4]
[336641503,1724994642686,-2070.45,0.00024657,4]
[336641505,1724994642696,-2070.45,0.00024657,4]
[336641506,1724994642706,-2070.45,0.00024657,4]
[336641508,1724994642715,-2070.45,0.00024657,4]
[336641510,1724994642725,-2070.45,0.00024657,4]
[336641512,1724994642734,-2070.45,0.00024657,4]
[336641513,1724994642744,-2070.45,0.00024657,4]
[336641514,1724994642753,-2070.45,0.00024657,4]
[336641515,1724994642762,-4136.57,0.00024657,4]
[336641516,1724994642772,-4136.57,0.00024657,4]
[336641517,1724994642782,-2795.45887159,0.00024657,4]
[336641613,1724994643785,-1341.11112841,0.00024657,4]
[336641615,1724994643795,-269.4230826,0.00024657,4]
[336641617,1724994643807,-3867.1469174,0.00024657,4]
[336641619,1724994643817,-4136.57,0.00024657,4]
[336641621,1724994643827,-4136.57,0.00024657,4]
[336641623,1724994643836,-4136.57,0.00024657,4]
[336641625,1724994643846,-4136.57,0.00024657,4]
[336641627,1724994643855,-4136.57,0.00024657,4]
[336641629,1724994643865,-4136.57,0.00024657,4]
[336641630,1724994643874,-4136.57,0.00024657,4]
[336641632,1724994643884,-4136.57,0.00024657,4]
[336641634,1724994643892,-4136.57,0.00024657,4]
[336641636,1724994643902,-4136.57,0.00024657,4]
[336641638,1724994643911,-4136.57,0.00024657,4]
[336641640,1724994643920,-4136.57,0.00024657,4]
[336641642,1724994643929,-4136.57,0.00024657,4]
[336641644,1724994643939,-4136.57,0.00024657,4]
[336641646,1724994643948,-4136.57,0.00024657,4]
[336641648,1724994643957,-4136.57,0.00024657,4]
[336641650,1724994643967,-4136.57,0.00024657,4]
[336641652,1724994643977,-4136.57,0.00024657,4]
[336641654,1724994643986,-4136.57,0.00024657,4]
[336641655,1724994643996,-4136.5972,0.00024657,4]
[336641657,1724994644007,-2057.16,0.00024657,4]
[336641659,1724994644016,-2057.16,0.00024657,4]
[336641661,1724994644025,-2057.16,0.00024657,4]
[336641663,1724994644034,-29.18410487,0.00024657,4]
[336641667,1724994644056,-2027.97589513,0.00024657,4]
[336641668,1724994644065,-2057.16,0.00024657,4]
[336641670,1724994644074,-747.08966723,0.00024657,4]
[336641673,1724994644086,-1310.07033277,0.00024657,4]
[336641675,1724994644095,-2057.16,0.00024657,4]
[336641677,1724994644105,-2057.16,0.00024657,4]
[336641679,1724994644115,-2057.16,0.00024657,4]
[336641681,1724994644124,-2057.16,0.00024657,4]
[336641683,1724994644133,-381.78966723,0.00024657,4]
[336641685,1724994644146,-340.43961353,0.00024657,4]
[336641687,1724994644158,-1334.93071924,0.00024657,4]
[336641689,1724994644167,-1713.39700958,0.00024657,4]
[336641697,1724994644235,-343.76299042,0.00024657,4]
[336641699,1724994644244,-392.15200958,0.00024657,4]
[336641701,1724994644256,-1310.89655929,0.00024657,4]
[336641704,1724994644267,-333.11332939,0.00024657,4]
[336641706,1724994644278,-20.99810174,0.00024657,4]
[336641708,1724994644287,-2057.16,0.00024657,4]
[336641710,1724994644295,-2057.16,0.00024657,4]
[336641712,1724994644304,-1422.0531707,0.00024657,4]
[336641714,1724994644317,-635.1068293,0.00024657,4]
[336641716,1724994644326,-2057.16,0.00024657,4]
[336641718,1724994644335,-1037.94193646,0.00024657,4]
[336641720,1724994644348,-1019.21806354,0.00024657,4]
[336641722,1724994644358,-2057.16,0.00024657,4]
[336641724,1724994644368,-2057.16,0.00024657,4]
[336641726,1724994644378,-2057.16,0.00024657,4]
[336641728,1724994644388,-500.0,0.00024657,4]
[336641730,1724994644398,-500.0,0.00024657,4]
[336641732,1724994644407,-500.0,0.00024657,4]
[336641734,1724994644416,-249.43085642,0.00024657,4]
[336641736,1724994644427,-500.0,0.00024657,4]
[336641738,1724994644438,-500.0,0.00024657,4]
[336641740,1724994644450,-500.0,0.00024657,4]
[336641743,1724994644460,-500.0,0.00024657,4]
[336641744,1724994644469,-500.0,0.00024657,4]
[336641746,1724994644479,-613.11392833,0.00024657,4]
[336641748,1724994644490,-500.0,0.00024657,4]
[336641749,1724994644500,-500.0,0.00024657,4]
[336641750,1724994644510,-500.0,0.00024657,4]
[336641751,1724994644519,-500.0,0.00024657,4]
[336641752,1724994644528,-500.0,0.00024657,4]
[336641753,1724994644537,-500.0,0.00024657,4]
[336641754,1724994644546,-500.0,0.00024657,4]
[336641755,1724994644555,-500.0,0.00024657,4]
[336641756,1724994644564,-500.0,0.00024657,4]
[336641757,1724994644573,-500.0,0.00024657,4]
[336641759,1724994644582,-319.30154875,0.00024657,4]
[336641761,1724994644604,-180.69845125,0.00024657,4]
[336641762,1724994644613,-350.25318059,0.00024657,4]
[336641763,1724994644625,-149.74681941,0.00024657,4]
[336641764,1724994644634,-148.20694146,0.00024657,4]
[336641765,1724994644646,-293.30521316,0.00024657,4]
[336641804,1724994645099,-58.48784538,0.00024657,4]
[336641806,1724994645109,-500.0,0.00024657,4]
[336641808,1724994645119,-500.0,0.00024657,4]
[336641810,1724994645128,-500.0,0.00024657,4]
[336641812,1724994645138,-587.76540444,0.00024657,4]
[336641814,1724994645147,-164.58426752,0.00024657,4]
[336641816,1724994645158,-287.91609343,0.00024657,4]
[336641818,1724994645168,-234.38528529,0.00024657,4]
[336641821,1724994645183,-265.61471471,0.00024657,4]
[336641823,1724994645192,-371.12530532,0.00024657,4]
[336641825,1724994645202,-345.09006638,0.00024657,4]
[336641827,1724994645212,-173.97336105,0.00024657,4]
[336641829,1724994645222,-271.1145,0.00024657,4]
[336641831,1724994645231,-21.21416157,0.00024657,4]
[336641833,1724994645245,-183.10722133,0.00024657,4]
[336641834,1724994645255,-237.58645049,0.00024657,4]
[336641835,1724994645264,-11.30632818,0.00024657,4]
[336641867,1724994646009,-272.71586905,0.00024657,4]
[336641868,1724994646019,-340.17852319,0.00024657,4]
[336641869,1724994646028,-500.0,0.00024657,4]
[336641870,1724994646038,-425.80097045,0.00024657,4]
[336641871,1724994646051,-351.73796283,0.00024657,4]
[336641872,1724994646060,-198.0,0.00024657,4]
[336641873,1724994646069,-202.28053501,0.00024657,4]
[336641874,1724994646233,-323.59618903,0.00024657,4]
[336641875,1724994646246,-500.0,0.00024657,4]
[336641876,1724994646256,-500.05857845,0.00024657,4]
[336641877,1724994646267,-500.0,0.00024657,4]
[336641878,1724994646276,-500.0,0.00024657,4]
[336641879,1724994646285,-449.24570317,0.00024657,4]
[336641881,1724994646295,-443.96803346,0.00024657,4]
[336641883,1724994646304,-500.0,0.00024657,4]
[336641885,1724994646313,-356.97276225,0.00024657,4]
[336641886,1724994646322,-500.09030761,0.00024657,4]
[336641887,1724994646331,-500.0,0.00024657,4]
[336641888,1724994646341,-279.69613667,0.00024657,4]
[336641889,1724994646352,-500.0,0.00024657,4]
[336641890,1724994646361,-340.06592132,0.00024657,4]
[336641891,1724994646371,-500.0,0.00024657,4]
[336641892,1724994646380,-500.0,0.00024657,4]
[336641893,1724994646390,-500.0,0.00024657,4]
[336641894,1724994646400,-413.20636798,0.00024657,4]
[336641895,1724994687903,15050.2465,0.000109,2]
[336641896,1724994732382,7500.0,0.000109,2]
[336641898,1724994740729,1310.4205,0.000109,2]
[336641899,1724994784801,28571.1356,0.000109,2]
[336641900,1724994815861,818.326,0.000109,2]
[336641901,1724995013078,500.0,0.000109,2]
[336641902,1724995013403,500.0,0.000109,2]
[336641903,1724995013727,500.0,0.000109,2]
[336641904,1724995014036,500.0,0.000109,2]
[336641905,1724995014933,580.0,0.000109,2]
[336641908,1724995512215,150.0,0.00010959,2]
[336641909,1724995512619,12.24,0.00010959,2]
[336641910,1724995530014,5848.51702667,0.000101,2]
[336641911,1724995536843,150.0,9.5e-05,2]
[336641912,1724995536864,150.0,9.5e-05,2]
[336641913,1724995536888,150.0,9.5e-05,2]
[336641914,1724995536911,150.0,9.5e-05,2]
[336641915,1724995536933,150.0,9.5e-05,2]
[336641916,1724995536955,150.0,9.5e-05,2]
[336641917,1724995536976,150.0,9.5e-05,2]
[336641918,1724995537000,150.0,9.5e-05,2]
[336641919,1724995537021,150.0,9.5e-05,2]
[336641920,1724995537041,150.0,9.5e-05,2]
[336641921,1724995537062,150.0,9.5e-05,2]
[336641922,1724995537084,150.0,9.5e-05,2]
[336641923,1724995537104,150.0,9.5e-05,2]
[336641924,1724995537126,150.0,9.5e-05,2]
[336641925,1724995537148,150.0,9.5e-05,2]
[336641926,1724995537169,150.0,9.5e-05,2]
[336641927,1724995537189,150.0,9.5e-05,2]
[336641928,1724995537209,150.0,9.5e-05,2]
[336641929,1724995537232,186.19157988,9.5e-05,2]
[336641930,1724995537255,2273.95842012,9.5e-05,2]
[336641931,1724995695660,14929.20859046,0.000109,2]
[336641937,1724995743521,345.36063455,0.000109,2]
[336641938,1724995768515,443.94855665,0.000109,2]
[336641940,1724995774160,2500.0,0.000109,2]
[336641941,1724995774480,2500.0,0.000109,2]
[336641948,1724995803937,236.744,0.000109,2]
[336641949,1724995825759,751.18,0.00010959,2]
[336641980,1724995832097,-300.0,0.00010999,2]
[336641982,1724995832106,-150.0,0.00010999,2]
[336641984,1724995832115,-316.95160616,0.00010999,2]
[336641985,1724995832127,-283214.1967991,0.00011,2]
[336641986,1724995832139,-264.63989011,0.00011,2]
[336641987,1724995832152,-599.46000008,0.00011,2]
[336641988,1724995832165,-3025.514,0.00011,2]
[336641989,1724995832176,-4383.83800905,0.00011,2]
[336641990,1724995832187,-11273.86824554,0.00011,2]
[336641991,1724995832202,-5923.23978873,0.00011,2]
[336641992,1724995832220,-2499.3130574,0.00011,2]
[336641993,1724995832232,-3273.10212446,0.00011,2]
[336641994,1724995832281,-747.70182206,0.00011,2]
[336641995,1724995832343,-600.09293378,0.00011,2]
[336641996,1724995832354,-454.22394535,0.00011,2]
[336641997,1724995832365,-661.83076547,0.00011,2]
[336641998,1724995832376,-4091.5764311,0.00011,2]
[336642011,1724995836891,625.99,0.00010959,2]
[336642013,1724995838193,-459.01463883,0.00011,2]
[336642014,1724995838309,-1241.67838036,0.00011,2]
[336642015,1724995838367,-2570.50200004,0.00011,2]
[336642016,1724995838429,-1515222.94669836,0.00011,2]
[336642017,1724995838439,-307.4727,0.00011,2]
[336642018,1724995838448,-579.94,0.00011,2]
[336642019,1724995838457,-40519.40028017,0.00011,2]
[336642020,1724995838466,-420.0,0.00012087,2]
[336642021,1724995838476,-3734.262,0.00012356,2]
[336642022,1724995838485,-5867.971,0.00012356,2]
[336642023,1724995838495,-1210.713,0.00012356,2]
[336642024,1724995838504,-447.0,0.00012356,2]
[336642025,1724995838513,-561.023,0.00012366,2]
[336642026,1724995838522,-1903.654,0.00012366,2]
[336642027,1724995838531,-1106.887,0.00012366,2]
[336642028,1724995838540,-768.0,0.00012366,2]
[336642029,1724995838549,-1084.768,0.00012366,2]
[336642031,1724995838558,-1267.401,0.00012366,2]
[336642033,1724995838567,-291.094,0.00012366,2]
[336642035,1724995838577,-1544.0,0.00012366,2]
[336642037,1724995838586,-628.708,0.00012366,2]
[336642038,1724995838595,-443.94855662,0.00012417,2]
[336642040,1724995838604,-153.0,0.00012603,2]
[336642042,1724995838614,-499.99,0.00013146,2]
[336642044,1724995838623,-587.0,0.00013282,2]
[336642046,1724995838633,-178.6,0.00013699,2]
[336642048,1724995838642,-443.94855662,0.00013935,2]
[336642050,1724995838652,-150.0,0.00014,2]
[336642052,1724995838661,-823.0,0.00014595,2]
[336642054,1724995838670,-2587.0,0.00015,2]
[336642055,1724995838679,-9999.99,0.00015,2]
[336642057,1724995838688,-450.44790902,0.00015,2]
[336642060,1724995838697,-96107.61504951,0.00015,2]
[336642061,1724995838707,-125754.14237871,0.00015,2]
[336642063,1724995838716,-5389.0,0.00015,2]
[336642066,1724995838725,-299.99,0.00015,2]
[336642069,1724995838733,-150.99,0.00015,2]
[336642072,1724995838742,-1497.59,0.00015,2]
[336642073,1724995838751,-2363.18,0.00015,2]
[336642075,1724995838761,-3731.0,0.00015356,2]
[336642077,1724995838770,-5852.0,0.00015356,2]
[336642078,1724995838779,-289.0,0.00015366,2]
[336642080,1724995838789,-623.0,0.00015366,2]
[336642082,1724995838798,-443.94855662,0.00015452,2]
[336642084,1724995838807,-500.0,0.00015712,2]
[336642086,1724995838816,-1152.0,0.00016039,2]
[336642087,1724995838826,-291.0,0.0001611,2]
[336642089,1724995838836,-443.94855662,0.0001697,2]
[336642091,1724995838846,-490.45,0.00016981,2]
[336642093,1724995838855,-250.0,0.00017076,2]
[336642094,1724995838864,-366.62,0.0001726,2]
[336642096,1724995838874,-60713.05991013,0.0001744,2]
[336642098,1724995838883,-750.0,0.000175,5]
[336642100,1724995838892,-302.0,0.00017625,2]
[336642102,1724995838902,-500.0,0.00017685,2]
[336642103,1724995838911,-185.523,0.00017685,2]
[336642105,1724995838920,-443.94855662,0.00018487,2]
[336642107,1724995838930,-185.523,0.00018614,2]
[336642109,1724995838939,-1300.0,0.00018629,2]
[336642111,1724995838948,-1200.0,0.00018629,2]
[336642113,1724995838958,-250.0,0.00018636,2]
[336642115,1724995838967,-1353.19,0.000189,7]
[336642116,1724995838977,-200.0,0.00018904,2]
[336642118,1724995838987,-159.38,0.00018973,2]
[336642120,1724995838997,-490.45,0.00019245,2]
[336642122,1724995839007,-185.523,0.0001964,2]
[336642124,1724995839017,-250.0,0.00019706,2]
[336642125,1724995839027,-1300.0,0.00019725,2]
[336642127,1724995839039,-1200.0,0.00019725,2]
[336642129,1724995839049,-500.0,0.00019725,2]
[336642131,1724995839058,-500.0,0.00019725,2]
[336642133,1724995839068,-162.95327982,0.0002,30]
[336642134,1724995839081,-324.888056,0.0002,2]
[336642136,1724995839090,-443.94855662,0.00020005,2]
[336642138,1724995839099,-178.6,0.00020091,2]
[336642140,1724995839109,-1300.0,0.00020821,2]
[336642142,1724995839119,-1200.0,0.00020821,2]
[336642143,1724995839129,-500.0,0.00020821,2]
[336642145,1724995839139,-324.888056,0.00020822,2]
[336642147,1724995839148,-707.65,0.00020984,2]
[336642149,1724995839160,-1000.0,0.000212,2]
[336642151,1724995839169,-490.45,0.00021509,2]
[336642153,1724995839179,-443.94855662,0.00021522,2]
[336642154,1724995839189,-653.45,0.00021589,30]
[336642156,1724995839198,-324.888056,0.00021644,2]
[336642158,1724995839208,-17977.32,0.00021757,2]
[336642160,1724995839217,-19575.24,0.00021757,2]
[336642162,1724995839226,-2751.0,0.00021829,2]
[336642164,1724995839236,-1300.0,0.00021917,2]
[336642165,1724995839246,-1200.0,0.00021917,2]
[336642167,1724995839255,-500.0,0.00021917,2]
[336642169,1724995839265,-500.0,0.00021917,2]
[336642171,1724995839275,-150.0,0.00021918,2]
[336642173,1724995839284,-707.65,0.00022033,2]
[336642175,1724995839293,-3000.0,0.000222,2]
[336642177,1724995839303,-1039.7,0.00022238,2]
[336642178,1724995839313,-2731.01,0.00022339,2]
[336642180,1724995839322,-324.888056,0.00022466,2]
[336642182,1724995839332,-150.0,0.00022495,2]
[336642184,1724995839341,-1300.0,0.00023013,2]
[336642186,1724995839350,-1200.0,0.00023013,2]
[336642187,1724995839359,-237.13155906,0.00023013,2]
[336642189,1724995839369,-443.94855662,0.0002304,2]
[336642191,1724995839378,-150.0,0.00023071,2]
[336642193,1724995839388,-707.65,0.00023082,2]
[336642195,1724995839397,-324.888056,0.00023288,2]
[336642196,1724995839407,-2000.0,0.000233,2]
[336642198,1724995839416,-250.0,0.000233,2]
[336642200,1724995839426,-151.16162037,0.00023554,2]
[336642202,1724995839435,-150.0,0.00023648,2]
[336642204,1724995839444,-400.0,0.00023668,2]
[336642205,1724995839453,-490.45,0.00023773,2]
[336642207,1724995839462,-1000.0,0.0002385,2]
[336642209,1724995839472,-2110.0,0.00023931,30]
[336642211,1724995839481,-500.0,0.00024021,2]
[336642213,1724995839491,-180.0,0.00024057,2]
[336642215,1724995839500,-900.0,0.0002407,2]
[336642217,1724995839510,-1159.88,0.000241,14]
[336642219,1724995839519,-1300.0,0.00024109,2]
[336642221,1724995839528,-1200.0,0.00024109,2]
[336642223,1724995839538,-500.0,0.00024109,2]
[336642225,1724995839548,-500.0,0.00024109,2]
[336642226,1724995839557,-533.47,0.0002411,2]
[336642228,1724995839566,-150.46,0.0002411,2]
[336642230,1724995839575,-324.888056,0.0002411,2]
[336642232,1724995839584,-707.65,0.00024131,2]
[336642234,1724995839594,-2500.0,0.00024135,2]
[336642236,1724995839603,-415.11710084,0.00024164,2]
[336642238,1724995839613,-1600.0,0.00024167,2]
[336642239,1724995839622,-600.0,0.0002419,2]